[Event "*** Titled Tuesday 3|2 Blitz"]
[Site "Chess.com"]
[Date "2015.02.24"]
[Round "9"]
[White "AnthonyWirig"]
[Black "Argente"]
[Result "0-1"]
[WhiteElo "2488"]
[BlackElo "2214"]
[TimeControl "180+2"]
[EndTime "12:59:57 PST"]
[Termination "Argente won by resignation"]

1. e4 {[%clk 0:02:56.9]} 1... g6 {[%clk 0:02:59.4]} 2. h4 {[%clk 0:02:57.5]}
2... d5 {[%clk 0:02:59.2]} 3. exd5 {[%clk 0:02:57.4]} 3... Qxd5 {[%clk 0:03:00]}
4. Nc3 {[%clk 0:02:58.6]} 4... Qd6 {[%clk 0:02:54]} 5. d4 {[%clk 0:02:59.5]}
5... Bg7 {[%clk 0:02:53.1]} 6. Nf3 {[%clk 0:02:59.6]} 6... Nf6 {[%clk
0:02:49.1]} 7. h5 {[%clk 0:02:52.6]} 7... Nxh5 {[%clk 0:02:41.6]} 8. Nb5 {[%clk
0:02:53.7]} 8... Qd8 {[%clk 0:02:38.4]} 9. Rxh5 {[%clk 0:02:54.6]} 9... gxh5
{[%clk 0:02:38.8]} 10. Bf4 {[%clk 0:02:56.2]} 10... Na6 {[%clk 0:02:37.4]} 11.
c3 {[%clk 0:02:44.3]} 11... c6 {[%clk 0:02:35.4]} 12. Na3 {[%clk 0:02:45.6]}
12... Nc7 {[%clk 0:02:29.9]} 13. Ne5 {[%clk 0:02:39.5]} 13... Bf5 {[%clk
0:02:09.9]} 14. Qxh5 {[%clk 0:02:27.8]} 14... Bg6 {[%clk 0:02:10.3]} 15. Qf3
{[%clk 0:02:23.2]} 15... Nd5 {[%clk 0:02:06.9]} 16. Bc4 {[%clk 0:02:18.4]} 16...
Nxf4 {[%clk 0:01:46.7]} 17. Qxf4 {[%clk 0:02:20.3]} 17... e6 {[%clk 0:01:38.7]}
18. Bb3 {[%clk 0:02:13.2]} 18... Qf6 {[%clk 0:01:34]} 19. Qe3 {[%clk 0:02:10.8]}
19... h5 {[%clk 0:01:29.5]} 20. Nac4 {[%clk 0:02:09.5]} 20... O-O-O {[%clk
0:01:26.5]} 21. Nf3 {[%clk 0:02:00]} 21... Kb8 {[%clk 0:01:14.5]} 22. Nce5
{[%clk 0:02:00]} 22... Bh6 {[%clk 0:01:03]} 23. Qe2 {[%clk 0:01:59.2]} 23... Bf4
{[%clk 0:01:02.7]} 24. a4 {[%clk 0:01:48.4]} 24... h4 {[%clk 0:01:00]} 25. Kf1
{[%clk 0:01:11.5]} 25... h3 {[%clk 0:00:53.7]} 26. g3 {[%clk 0:01:12.8]} 26...
Bxe5 {[%clk 0:00:47.3]} 27. Nxe5 {[%clk 0:01:07.1]} 27... c5 {[%clk 0:00:29.8]}
28. dxc5 {[%clk 0:00:59.1]} 28... Qg5 {[%clk 0:00:26.8]} 29. c6 {[%clk
0:00:35.2]} 29... h2 {[%clk 0:00:24]} 30. Kg2 {[%clk 0:00:32]} 30... Qd2 {[%clk
0:00:15.4]} 31. Qf3 {[%clk 0:00:15.9]} 31... h1=Q+ {[%clk 0:00:06.1]} 32. Rxh1
{[%clk 0:00:15.9]} 32... Rxh1 {[%clk 0:00:06.8]} 33. Kxh1 {[%clk 0:00:17.5]}
33... Qe1+ {[%clk 0:00:07.1]} 34. Kg2 {[%clk 0:00:17.1]} 34... Be4 {[%clk
0:00:07.9]} 35. cxb7 {[%clk 0:00:13.9]} 35... Bxf3+ {[%clk 0:00:08.9]} 36. Nxf3
{[%clk 0:00:15.8]} 36... Qe4 {[%clk 0:00:09.8]} 0-1

[Event "*** Titled Tuesday 3|2 Blitz"]
[Site "Chess.com"]
[Date "2015.02.24"]
[Round "9"]
[White "Zlatan56"]
[Black "BeerLag"]
[Result "1-0"]
[WhiteElo "2527"]
[BlackElo "2401"]
[TimeControl "180+2"]
[EndTime "13:00:26 PST"]
[Termination "Zlatan56 won by resignation"]

1. Nf3 {[%clk 0:03:00]} 1... Nf6 {[%clk 0:02:54.7]} 2. g3 {[%clk 0:03:00]} 2...
g6 {[%clk 0:02:55.3]} 3. b3 {[%clk 0:03:00.4]} 3... Bg7 {[%clk 0:02:57.1]} 4.
Bb2 {[%clk 0:03:01.4]} 4... O-O {[%clk 0:02:57.9]} 5. Bg2 {[%clk 0:03:02.4]}
5... c5 {[%clk 0:02:58.3]} 6. c4 {[%clk 0:03:01.8]} 6... Nc6 {[%clk 0:02:58.9]}
7. O-O {[%clk 0:03:02.2]} 7... d6 {[%clk 0:02:58.6]} 8. d4 {[%clk 0:03:02.3]}
8... cxd4 {[%clk 0:02:59.2]} 9. Nxd4 {[%clk 0:03:03.9]} 9... Bd7 {[%clk
0:03:00.4]} 10. Nc3 {[%clk 0:03:03.8]} 10... Nxd4 {[%clk 0:02:56.6]} 11. Qxd4
{[%clk 0:03:03.9]} 11... Bc6 {[%clk 0:02:58.2]} 12. Nd5 {[%clk 0:03:02.8]} 12...
Bxd5 {[%clk 0:02:55.7]} 13. cxd5 {[%clk 0:03:01.5]} 13... b5 {[%clk 0:02:52.6]}
14. Rfc1 {[%clk 0:02:57.9]} 14... Nh5 {[%clk 0:02:46.5]} 15. Qd2 {[%clk
0:02:58.3]} 15... Bxb2 {[%clk 0:02:46.7]} 16. Qxb2 {[%clk 0:02:58.9]} 16... Qd7
{[%clk 0:02:45.3]} 17. Rc6 {[%clk 0:02:58.8]} 17... Nf6 {[%clk 0:02:42.1]} 18.
Rac1 {[%clk 0:02:59.1]} 18... Qf5 {[%clk 0:02:32.5]} 19. Qd4 {[%clk 0:02:52.9]}
19... Nd7 {[%clk 0:02:18.5]} 20. Rc7 {[%clk 0:02:49.8]} 20... Ne5 {[%clk
0:02:06.7]} 21. Rxe7 {[%clk 0:02:42.6]} 21... Rfc8 {[%clk 0:02:00.5]} 22. Rf1
{[%clk 0:02:20.1]} 22... a5 {[%clk 0:01:53.6]} 23. Ra7 {[%clk 0:02:16.5]} 23...
Qc2 {[%clk 0:00:51.5]} 24. Rxa8 {[%clk 0:01:51.3]} 24... Rxa8 {[%clk 0:00:53.4]}
25. f4 {[%clk 0:01:51.7]} 25... Nd7 {[%clk 0:00:50.2]} 26. e4 {[%clk 0:01:28]}
26... a4 {[%clk 0:00:43.3]} 27. Rf2 {[%clk 0:00:59.5]} 27... Qc1+ {[%clk
0:00:27.5]} 28. Bf1 {[%clk 0:00:59.7]} 28... axb3 {[%clk 0:00:25.2]} 29. axb3
{[%clk 0:01:00.7]} 29... Nc5 {[%clk 0:00:21.8]} 30. e5 {[%clk 0:01:01]} 30...
Nxb3 {[%clk 0:00:21.1]} 31. Qb4 {[%clk 0:00:57.8]} 31... Nc5 {[%clk 0:00:19.2]}
32. exd6 {[%clk 0:00:55.8]} 32... Qe3 {[%clk 0:00:18.8]} 33. Qd2 {[%clk
0:00:52.6]} 33... Qxd2 {[%clk 0:00:19.7]} 34. Rxd2 {[%clk 0:00:52.9]} 34... b4
{[%clk 0:00:21.3]} 35. Rc2 {[%clk 0:00:50.8]} 35... Nd7 {[%clk 0:00:19.4]} 36.
Rc7 {[%clk 0:00:51.2]} 36... Rd8 {[%clk 0:00:21]} 37. Rb7 {[%clk 0:00:46.2]}
37... Nf6 {[%clk 0:00:21.9]} 38. Rxb4 {[%clk 0:00:46.7]} 38... Rxd6 {[%clk
0:00:22.9]} 39. Bg2 {[%clk 0:00:47.3]} 39... Kg7 {[%clk 0:00:22.6]} 40. Rb5
{[%clk 0:00:47.6]} 40... h5 {[%clk 0:00:21.5]} 41. h3 {[%clk 0:00:46.4]} 41...
Kf8 {[%clk 0:00:21.5]} 42. Kf2 {[%clk 0:00:47.2]} 42... Ke7 {[%clk 0:00:23.1]}
43. Ke3 {[%clk 0:00:48.1]} 43... Nd7 {[%clk 0:00:23.9]} 44. Bf1 {[%clk 0:00:40]}
44... Ra6 {[%clk 0:00:20.3]} 45. Rb7 {[%clk 0:00:31.9]} 45... Ra3+ {[%clk
0:00:21.1]} 46. Kd4 {[%clk 0:00:32.9]} 46... Kd6 {[%clk 0:00:21]} 47. Bb5 {[%clk
0:00:32.1]} 47... Nc5 {[%clk 0:00:11.3]} 48. Rb6+ {[%clk 0:00:31.3]} 48... Ke7
{[%clk 0:00:11.7]} 49. Kxc5 {[%clk 0:00:29.6]} 1-0

[Event "*** Titled Tuesday 3|2 Blitz"]
[Site "Chess.com"]
[Date "2015.02.24"]
[Round "9"]
[White "rhungaski"]
[Black "kesarev"]
[Result "1-0"]
[WhiteElo "2430"]
[BlackElo "2258"]
[TimeControl "180+2"]
[EndTime "13:00:48 PST"]
[Termination "rhungaski won by resignation"]

1. d4 {[%clk 0:03:00]} 1... g6 {[%clk 0:02:58.6]} 2. c4 {[%clk 0:03:01]} 2...
Bg7 {[%clk 0:03:00.1]} 3. Nf3 {[%clk 0:03:02.9]} 3... Nf6 {[%clk 0:02:57.6]} 4.
Nc3 {[%clk 0:03:01]} 4... O-O {[%clk 0:02:59]} 5. e4 {[%clk 0:03:01.7]} 5... d6
{[%clk 0:03:00.3]} 6. Be2 {[%clk 0:03:01.7]} 6... e5 {[%clk 0:03:00.7]} 7. dxe5
{[%clk 0:03:03.6]} 7... dxe5 {[%clk 0:03:01.1]} 8. Qxd8 {[%clk 0:03:05.5]} 8...
Rxd8 {[%clk 0:03:02.5]} 9. Bg5 {[%clk 0:03:07.4]} 9... Na6 {[%clk 0:02:58.7]}
10. Nd5 {[%clk 0:02:49.1]} 10... Rd6 {[%clk 0:02:58.9]} 11. Nxf6+ {[%clk
0:02:24.2]} 11... Bxf6 {[%clk 0:02:59.2]} 12. Bxf6 {[%clk 0:02:25.7]} 12... Rxf6
{[%clk 0:03:00.9]} 13. Nxe5 {[%clk 0:02:26.9]} 13... Re6 {[%clk 0:03:00.8]} 14.
f4 {[%clk 0:02:19]} 14... f6 {[%clk 0:03:01.3]} 15. Ng4 {[%clk 0:02:19.8]} 15...
h5 {[%clk 0:02:52.3]} 16. Nf2 {[%clk 0:02:20.3]} 16... Nc5 {[%clk 0:02:50.3]}
17. O-O-O {[%clk 0:02:20.8]} 17... Re8 {[%clk 0:02:41.8]} 18. Bf3 {[%clk
0:02:17.7]} 18... a5 {[%clk 0:02:41.2]} 19. b3 {[%clk 0:02:17.9]} 19... Bd7
{[%clk 0:02:41]} 20. Rhe1 {[%clk 0:02:12.8]} 20... Bc6 {[%clk 0:02:39.5]} 21. f5
{[%clk 0:01:46.8]} 21... gxf5 {[%clk 0:02:28.3]} 22. Bxh5 {[%clk 0:01:47.5]}
22... Re5 {[%clk 0:02:26]} 23. Bg6 {[%clk 0:01:18]} 23... fxe4 {[%clk
0:02:20.9]} 24. h4 {[%clk 0:01:18.2]} 24... Kg7 {[%clk 0:02:05.3]} 25. h5 {[%clk
0:01:15.5]} 25... Be8 {[%clk 0:02:06.3]} 26. Bxe8 {[%clk 0:01:07.3]} 26... Raxe8
{[%clk 0:02:08.2]} 27. g4 {[%clk 0:01:08.2]} 27... Kh6 {[%clk 0:02:03.1]} 28.
Re3 {[%clk 0:00:59.8]} 28... Kg5 {[%clk 0:01:59.9]} 29. Rg1 {[%clk 0:01:01.1]}
29... Kh6 {[%clk 0:01:43.2]} 30. Kd2 {[%clk 0:00:56.2]} 30... Rg8 {[%clk
0:01:36.9]} 31. Nh3 {[%clk 0:00:47]} 31... Ne6 {[%clk 0:01:24.4]} 32. Reg3
{[%clk 0:00:42.9]} 32... Rd8+ {[%clk 0:01:22.9]} 33. Ke1 {[%clk 0:00:34.8]}
33... Nd4 {[%clk 0:01:19.3]} 34. Kf2 {[%clk 0:00:19.9]} 34... Nf3 {[%clk
0:01:13.9]} 35. Rxf3 {[%clk 0:00:20.3]} 35... exf3 {[%clk 0:01:14.6]} 36. Nf4
{[%clk 0:00:21.9]} 36... Rd2+ {[%clk 0:01:12.8]} 37. Kxf3 {[%clk 0:00:22.9]}
37... Rxa2 {[%clk 0:01:13.8]} 38. Nd5 {[%clk 0:00:24.1]} 38... Re6 {[%clk
0:01:08.7]} 39. Ne3 {[%clk 0:00:24.4]} 39... Rb2 {[%clk 0:01:08.2]} 40. Kf4
{[%clk 0:00:25.5]} 40... Rxb3 {[%clk 0:01:07.1]} 41. Nf5+ {[%clk 0:00:27]} 41...
Kh7 {[%clk 0:01:08]} 42. Nd4 {[%clk 0:00:27.3]} 42... Reb6 {[%clk 0:01:05.6]}
43. Nxb3 {[%clk 0:00:27.8]} 43... Rxb3 {[%clk 0:01:07.5]} 44. Rd1 {[%clk
0:00:28.7]} 44... Rc3 {[%clk 0:01:02.4]} 45. Rd7+ {[%clk 0:00:29]} 45... Kh6
{[%clk 0:01:03.7]} 46. Rxc7 {[%clk 0:00:29.9]} 46... b5 {[%clk 0:01:04.6]} 47.
c5 {[%clk 0:00:28.3]} 47... a4 {[%clk 0:01:03.9]} 48. Rc6 {[%clk 0:00:20.7]}
48... Kg7 {[%clk 0:01:02.5]} 49. Rc7+ {[%clk 0:00:21.9]} 49... Kh6 {[%clk
0:01:03.6]} 50. Rc6 {[%clk 0:00:22.6]} 50... Kg7 {[%clk 0:00:59.3]} 51. Rc7+
{[%clk 0:00:23.9]} 51... Kh8 {[%clk 0:01:00.4]} 52. Kf5 {[%clk 0:00:24.9]} 52...
Kg8 {[%clk 0:00:58.7]} 53. Kg6 {[%clk 0:00:24.6]} 53... Kf8 {[%clk 0:00:59.2]}
54. h6 {[%clk 0:00:25.5]} 54... b4 {[%clk 0:00:59.6]} 55. h7 {[%clk 0:00:24.7]}
55... Rh3 {[%clk 0:01:00.6]} 56. Rb7 {[%clk 0:00:21.6]} 56... b3 {[%clk
0:01:00.9]} 57. c6 {[%clk 0:00:21.5]} 57... Ke8 {[%clk 0:01:01.4]} 58. Rb8+
{[%clk 0:00:21]} 58... Ke7 {[%clk 0:01:02.4]} 59. c7 {[%clk 0:00:22.5]} 1-0

[Event "*** Titled Tuesday 3|2 Blitz"]
[Site "Chess.com"]
[Date "2015.02.24"]
[Round "9"]
[White "SuPeR_Fm"]
[Black "xtremeungar"]
[Result "1-0"]
[WhiteElo "2322"]
[BlackElo "2225"]
[TimeControl "180+2"]
[EndTime "13:00:50 PST"]
[Termination "SuPeR_Fm won by resignation"]

1. d4 {[%clk 0:03:00]} 1... Nf6 {[%clk 0:02:57.8]} 2. c4 {[%clk 0:02:59.9]} 2...
g6 {[%clk 0:02:58]} 3. Nc3 {[%clk 0:03:00]} 3... Bg7 {[%clk 0:02:59.7]} 4. e4
{[%clk 0:03:00.4]} 4... O-O {[%clk 0:03:01.6]} 5. e5 {[%clk 0:03:01.5]} 5... Ne8
{[%clk 0:03:02.4]} 6. Nf3 {[%clk 0:03:02.8]} 6... d6 {[%clk 0:03:03.6]} 7. Bf4
{[%clk 0:03:04.4]} 7... c5 {[%clk 0:03:04.6]} 8. dxc5 {[%clk 0:03:05.5]} 8...
Nc6 {[%clk 0:03:04.9]} 9. cxd6 {[%clk 0:03:05.8]} 9... exd6 {[%clk 0:03:03.8]}
10. exd6 {[%clk 0:03:07.7]} 10... Qf6 {[%clk 0:02:52.4]} 11. Qd2 {[%clk
0:03:05.5]} 11... Nxd6 {[%clk 0:02:22.5]} 12. Qxd6 {[%clk 0:03:01.4]} 12... Be6
{[%clk 0:02:20.4]} 13. Qd2 {[%clk 0:02:49.7]} 13... Rad8 {[%clk 0:02:16]} 14.
Qc1 {[%clk 0:02:50.5]} 14... Rfe8 {[%clk 0:02:07.1]} 15. Be2 {[%clk 0:02:48.6]}
15... Bxc4 {[%clk 0:02:06.8]} 16. Bg5 {[%clk 0:02:49.8]} 16... Qe6 {[%clk
0:01:05.3]} 17. Be3 {[%clk 0:02:36.1]} 17... Bxc3+ {[%clk 0:00:32.7]} 18. Qxc3
{[%clk 0:02:32.1]} 18... Bxe2 {[%clk 0:00:34.6]} 19. Kxe2 {[%clk 0:02:34]} 19...
Ne7 {[%clk 0:00:29.1]} 20. Rhd1 {[%clk 0:02:27.1]} 20... Qa6+ {[%clk 0:00:27.7]}
21. Ke1 {[%clk 0:02:26.7]} 21... Nd5 {[%clk 0:00:28.8]} 22. Rxd5 {[%clk
0:02:27.1]} 22... Rxd5 {[%clk 0:00:29.4]} 23. a3 {[%clk 0:01:48.3]} 23... Red8
{[%clk 0:00:30.3]} 24. Nd4 {[%clk 0:01:38.8]} 24... Qa4 {[%clk 0:00:18.7]} 25.
Rd1 {[%clk 0:01:33.9]} 25... b5 {[%clk 0:00:13.6]} 26. Rd2 {[%clk 0:01:33.3]}
26... a5 {[%clk 0:00:13.4]} 27. Nf3 {[%clk 0:00:46.1]} 27... b4 {[%clk
0:00:13.6]} 28. Qc2 {[%clk 0:00:40.8]} 28... Qb5 {[%clk 0:00:11.9]} 29. Rxd5
{[%clk 0:00:41.2]} 29... Rxd5 {[%clk 0:00:11.5]} 30. a4 {[%clk 0:00:35.6]} 30...
Qd7 {[%clk 0:00:11.6]} 31. h3 {[%clk 0:00:30.9]} 31... f6 {[%clk 0:00:11.7]} 32.
Nd2 {[%clk 0:00:30.1]} 32... Kg7 {[%clk 0:00:11.5]} 33. Ne4 {[%clk 0:00:30.4]}
33... Re5 {[%clk 0:00:11.6]} 34. Nc5 {[%clk 0:00:30.2]} 34... Qd5 {[%clk
0:00:11.9]} 35. Nd3 {[%clk 0:00:30.9]} 35... Re7 {[%clk 0:00:13]} 36. Nf4 {[%clk
0:00:31.7]} 36... Qa2 {[%clk 0:00:13]} 37. Ke2 {[%clk 0:00:29.2]} 37... b3
{[%clk 0:00:14.1]} 38. Qc3 {[%clk 0:00:28.4]} 38... Qxa4 {[%clk 0:00:15.3]} 39.
Qc5 {[%clk 0:00:29]} 39... Rb7 {[%clk 0:00:15.2]} 40. Ne6+ {[%clk 0:00:29.7]}
40... Kf7 {[%clk 0:00:14.2]} 41. Nd8+ {[%clk 0:00:30.1]} 41... Ke8 {[%clk
0:00:15.6]} 42. Nxb7 {[%clk 0:00:32]} 42... Qa2 {[%clk 0:00:12.2]} 43. Qc6+
{[%clk 0:00:29.1]} 43... Kf7 {[%clk 0:00:12.9]} 44. Qd7+ {[%clk 0:00:29.7]}
44... Kg8 {[%clk 0:00:13.6]} 45. Qd5+ {[%clk 0:00:27.8]} 45... Kg7 {[%clk
0:00:14]} 46. Bd4 {[%clk 0:00:29.3]} 46... Qb1 {[%clk 0:00:13.9]} 47. Qd7+
{[%clk 0:00:30.1]} 47... Kh6 {[%clk 0:00:14.8]} 48. Be3+ {[%clk 0:00:29.8]}
48... g5 {[%clk 0:00:16.3]} 49. Qd2 {[%clk 0:00:30]} 49... a4 {[%clk 0:00:17.3]}
50. Nc5 {[%clk 0:00:30.6]} 50... a3 {[%clk 0:00:17.8]} 51. bxa3 {[%clk
0:00:32.1]} 51... b2 {[%clk 0:00:19]} 52. Nd3 {[%clk 0:00:33.7]} 1-0

[Event "*** Titled Tuesday 3|2 Blitz"]
[Site "Chess.com"]
[Date "2015.02.24"]
[Round "9"]
[White "Tilicheev_Viacheslav"]
[Black "Kacparov"]
[Result "1-0"]
[WhiteElo "2548"]
[BlackElo "2441"]
[TimeControl "180+2"]
[EndTime "13:01:26 PST"]
[Termination "Tilicheev_Viacheslav won by resignation"]

1. e4 {[%clk 0:03:00]} 1... c5 {[%clk 0:02:55.1]} 2. Nf3 {[%clk 0:03:00.2]} 2...
e6 {[%clk 0:02:55.1]} 3. b3 {[%clk 0:03:01.2]} 3... b6 {[%clk 0:02:55.5]} 4. Bb2
{[%clk 0:03:02.4]} 4... Bb7 {[%clk 0:02:56.9]} 5. Bd3 {[%clk 0:03:03.7]} 5...
Nc6 {[%clk 0:02:56.7]} 6. a3 {[%clk 0:03:05]} 6... Nge7 {[%clk 0:02:55.6]} 7.
O-O {[%clk 0:03:05.8]} 7... Ng6 {[%clk 0:02:56.1]} 8. Re1 {[%clk 0:03:05.8]}
8... Qc7 {[%clk 0:02:56.8]} 9. Nc3 {[%clk 0:03:05.7]} 9... d6 {[%clk 0:02:55.5]}
10. Bf1 {[%clk 0:03:02.8]} 10... Be7 {[%clk 0:02:54.6]} 11. d4 {[%clk
0:03:04.3]} 11... cxd4 {[%clk 0:02:55.2]} 12. Nxd4 {[%clk 0:03:06.2]} 12... O-O
{[%clk 0:02:49.1]} 13. Ncb5 {[%clk 0:02:58]} 13... Qb8 {[%clk 0:02:48.8]} 14. c4
{[%clk 0:02:59.1]} 14... a6 {[%clk 0:02:43.7]} 15. Nc3 {[%clk 0:03:00]} 15...
Bf6 {[%clk 0:02:44.5]} 16. Nxc6 {[%clk 0:02:55.1]} 16... Bxc6 {[%clk 0:02:46.4]}
17. Qd2 {[%clk 0:02:56.6]} 17... b5 {[%clk 0:02:38.9]} 18. cxb5 {[%clk
0:02:28.6]} 18... axb5 {[%clk 0:02:40.8]} 19. Rad1 {[%clk 0:02:29.7]} 19... b4
{[%clk 0:02:29.4]} 20. axb4 {[%clk 0:02:26.5]} 20... Qxb4 {[%clk 0:02:20.7]} 21.
Nd5 {[%clk 0:02:26.1]} 21... Qxd2 {[%clk 0:02:21.9]} 22. Nxf6+ {[%clk
0:02:27.3]} 22... gxf6 {[%clk 0:02:23]} 23. Rxd2 {[%clk 0:02:28.7]} 23... Ra2
{[%clk 0:02:24.2]} 24. Red1 {[%clk 0:02:07.4]} 24... Bxe4 {[%clk 0:01:58.3]} 25.
Bxf6 {[%clk 0:02:07.1]} 25... Bc2 {[%clk 0:01:58.1]} 26. b4 {[%clk 0:02:00.1]}
26... Bxd1 {[%clk 0:01:43.4]} 27. Rxa2 {[%clk 0:01:59.3]} 27... Rb8 {[%clk
0:01:34]} 28. b5 {[%clk 0:02:00]} 28... Bb3 {[%clk 0:01:28.3]} 29. Ra6 {[%clk
0:01:45.6]} 29... d5 {[%clk 0:00:56.5]} 30. h4 {[%clk 0:01:39.3]} 30... h5
{[%clk 0:00:53.9]} 31. Rc6 {[%clk 0:01:27]} 31... Bc4 {[%clk 0:00:41.6]} 32.
Bxc4 {[%clk 0:01:21.3]} 32... dxc4 {[%clk 0:00:43.5]} 33. Rc5 {[%clk 0:01:22.7]}
33... e5 {[%clk 0:00:35.1]} 34. g3 {[%clk 0:01:15.2]} 34... Rb6 {[%clk
0:00:30.3]} 35. Bxe5 {[%clk 0:01:10.8]} 35... Nf8 {[%clk 0:00:14.2]} 36. Bd4
{[%clk 0:00:59.8]} 36... Rb7 {[%clk 0:00:13.1]} 37. Rxh5 {[%clk 0:01:00.1]}
37... f6 {[%clk 0:00:08.9]} 38. Bxf6 {[%clk 0:00:56.6]} 38... Nd7 {[%clk
0:00:09.9]} 39. Bd4 {[%clk 0:00:55.7]} 39... Kf7 {[%clk 0:00:11.1]} 40. f4
{[%clk 0:00:43.8]} 40... Ke6 {[%clk 0:00:11.3]} 41. Kf2 {[%clk 0:00:44.5]} 41...
Rc7 {[%clk 0:00:10.9]} 42. b6 {[%clk 0:00:45]} 42... Rb7 {[%clk 0:00:10.8]} 43.
Ke3 {[%clk 0:00:46.6]} 43... Rb8 {[%clk 0:00:08.4]} 44. Ke4 {[%clk 0:00:45.5]}
44... Rc8 {[%clk 0:00:04.7]} 45. b7 {[%clk 0:00:44.7]} 45... Rb8 {[%clk
0:00:05.8]} 46. Rh6+ {[%clk 0:00:46]} 46... Ke7 {[%clk 0:00:07]} 47. Rc6 {[%clk
0:00:46.9]} 47... Rxb7 {[%clk 0:00:07]} 48. Rxc4 {[%clk 0:00:48.2]} 48... Rb3
{[%clk 0:00:08.9]} 49. Rc3 {[%clk 0:00:47.3]} 49... Rb1 {[%clk 0:00:10.4]} 50.
Re3 {[%clk 0:00:48.3]} 50... Kf7 {[%clk 0:00:11.2]} 51. Kf3 {[%clk 0:00:49.5]}
51... Rf1+ {[%clk 0:00:12.1]} 52. Kg2 {[%clk 0:00:49.2]} 52... Rd1 {[%clk
0:00:13.3]} 53. Be5 {[%clk 0:00:49.8]} 53... Nf8 {[%clk 0:00:13.7]} 54. h5
{[%clk 0:00:50.2]} 54... Ne6 {[%clk 0:00:14.9]} 55. Kh3 {[%clk 0:00:50.8]} 55...
Rh1+ {[%clk 0:00:15.8]} 56. Kg4 {[%clk 0:00:51.4]} 56... Nf8 {[%clk 0:00:16.9]}
57. Ra3 {[%clk 0:00:44.4]} 57... Nd7 {[%clk 0:00:17.9]} 58. Ra7 {[%clk
0:00:43.8]} 58... Ke6 {[%clk 0:00:19.6]} 59. Kg5 {[%clk 0:00:42.4]} 59... Nc5
{[%clk 0:00:20.7]} 60. g4 {[%clk 0:00:41.4]} 60... Ne4+ {[%clk 0:00:21.7]} 61.
Kg6 {[%clk 0:00:42.4]} 61... Rh4 {[%clk 0:00:22.8]} 62. g5 {[%clk 0:00:42.9]}
62... Ng3 {[%clk 0:00:23.7]} 63. h6 {[%clk 0:00:43.6]} 63... Rh1 {[%clk
0:00:24]} 64. h7 {[%clk 0:00:43.1]} 64... Nf5 {[%clk 0:00:24.3]} 65. Ra6+ {[%clk
0:00:43]} 1-0

[Event "*** Titled Tuesday 3|2 Blitz"]
[Site "Chess.com"]
[Date "2015.02.24"]
[Round "9"]
[White "pedromartinez91"]
[Black "tigrangharamian"]
[Result "1-0"]
[WhiteElo "2173"]
[BlackElo "2507"]
[TimeControl "180+2"]
[EndTime "13:01:41 PST"]
[Termination "pedromartinez91 won by resignation"]

1. e4 {[%clk 0:03:00]} 1... c5 {[%clk 0:02:58.5]} 2. Nf3 {[%clk 0:03:00.7]} 2...
d6 {[%clk 0:02:59.9]} 3. Bb5+ {[%clk 0:03:01.3]} 3... Bd7 {[%clk 0:03:01.1]} 4.
Bxd7+ {[%clk 0:03:00.5]} 4... Nxd7 {[%clk 0:03:03]} 5. O-O {[%clk 0:03:01.6]}
5... Ngf6 {[%clk 0:03:04.2]} 6. Re1 {[%clk 0:03:02.5]} 6... Rc8 {[%clk
0:03:05.2]} 7. c3 {[%clk 0:03:03.6]} 7... e6 {[%clk 0:03:06.7]} 8. Qa4 {[%clk
0:03:03.9]} 8... a6 {[%clk 0:03:06.7]} 9. d4 {[%clk 0:03:02.7]} 9... cxd4 {[%clk
0:03:07.1]} 10. cxd4 {[%clk 0:03:03.6]} 10... Be7 {[%clk 0:02:24.9]} 11. Nc3
{[%clk 0:03:03.5]} 11... O-O {[%clk 0:02:26.3]} 12. e5 {[%clk 0:02:58.2]} 12...
dxe5 {[%clk 0:02:00.1]} 13. dxe5 {[%clk 0:02:58.2]} 13... Ne8 {[%clk 0:01:58.5]}
14. Qg4 {[%clk 0:02:48.9]} 14... g6 {[%clk 0:01:53.5]} 15. Bh6 {[%clk
0:02:43.4]} 15... Ng7 {[%clk 0:01:54.8]} 16. Rad1 {[%clk 0:02:44.4]} 16... Qc7
{[%clk 0:01:53.6]} 17. Ne4 {[%clk 0:02:15.8]} 17... Nxe5 {[%clk 0:01:47.3]} 18.
Nxe5 {[%clk 0:02:16]} 18... Qxe5 {[%clk 0:01:49.2]} 19. Nd6 {[%clk 0:02:17.1]}
19... Qxb2 {[%clk 0:01:27.6]} 20. Nxc8 {[%clk 0:02:08.8]} 20... Rxc8 {[%clk
0:01:29.5]} 21. Rd7 {[%clk 0:01:49.8]} 21... Nf5 {[%clk 0:01:27]} 22. Bf4 {[%clk
0:01:37.6]} 22... Qb5 {[%clk 0:01:17.8]} 23. Qd1 {[%clk 0:01:34.6]} 23... Bf6
{[%clk 0:01:13.7]} 24. Bc7 {[%clk 0:01:30.2]} 24... Qc6 {[%clk 0:01:10.6]} 25.
Bg3 {[%clk 0:01:20]} 25... h5 {[%clk 0:01:09.7]} 26. h3 {[%clk 0:01:14.2]} 26...
Kg7 {[%clk 0:00:59.6]} 27. Be5 {[%clk 0:01:07.9]} 27... Bxe5 {[%clk 0:00:56.3]}
28. Rxe5 {[%clk 0:01:08.7]} 28... Nh4 {[%clk 0:00:55.8]} 29. f3 {[%clk
0:01:08.3]} 29... Qc2 {[%clk 0:00:36.1]} 30. Re2 {[%clk 0:00:50.9]} 30... Qxd1+
{[%clk 0:00:33.5]} 31. Rxd1 {[%clk 0:00:51.9]} 31... Rc7 {[%clk 0:00:33.3]} 32.
Rd6 {[%clk 0:00:50.6]} 32... Nf5 {[%clk 0:00:28.9]} 33. Rb6 {[%clk 0:00:50.8]}
33... h4 {[%clk 0:00:30]} 34. Reb2 {[%clk 0:00:50]} 34... Rc4 {[%clk 0:00:27]}
35. Rxb7 {[%clk 0:00:48.9]} 35... Ra4 {[%clk 0:00:28.5]} 36. R7b4 {[%clk
0:00:47.7]} 36... Ra5 {[%clk 0:00:29.8]} 37. Kf2 {[%clk 0:00:46.8]} 37... g5
{[%clk 0:00:31.2]} 38. Rg4 {[%clk 0:00:46.3]} 38... Kf6 {[%clk 0:00:26.7]} 39.
Rc4 {[%clk 0:00:45.3]} 39... Ne7 {[%clk 0:00:25]} 40. f4 {[%clk 0:00:42.3]}
40... Rf5 {[%clk 0:00:22.1]} 41. g4 {[%clk 0:00:34.5]} 41... hxg3+ {[%clk
0:00:20.5]} 42. Kxg3 {[%clk 0:00:35.6]} 42... Nd5 {[%clk 0:00:21.6]} 43. fxg5+
{[%clk 0:00:35.9]} 43... Rxg5+ {[%clk 0:00:23.5]} 44. Rg4 {[%clk 0:00:36.3]}
44... Rh5 {[%clk 0:00:22.7]} 45. Rf2+ {[%clk 0:00:35.5]} 45... Ke7 {[%clk
0:00:23.3]} 46. Ra4 {[%clk 0:00:35.9]} 46... Nc3 {[%clk 0:00:17.3]} 47. Rxa6
{[%clk 0:00:23.7]} 47... Ne4+ {[%clk 0:00:18.1]} 48. Kg4 {[%clk 0:00:24.4]}
48... Rg5+ {[%clk 0:00:14.4]} 49. Kh4 {[%clk 0:00:25.7]} 49... f5 {[%clk
0:00:08.2]} 50. Re2 {[%clk 0:00:18.3]} 50... Rg8 {[%clk 0:00:06.6]} 51. Ra7+
{[%clk 0:00:18.9]} 51... Kf6 {[%clk 0:00:07.8]} 52. Rh7 {[%clk 0:00:17.9]} 52...
Ke5 {[%clk 0:00:05.6]} 53. Rh6 {[%clk 0:00:15.5]} 53... Ra8 {[%clk 0:00:03.8]}
54. Kh5 {[%clk 0:00:14.8]} 54... Rg8 {[%clk 0:00:04.8]} 55. Rg6 {[%clk
0:00:15.4]} 55... Rh8+ {[%clk 0:00:06.4]} 56. Rh6 {[%clk 0:00:16.9]} 56... Rg8
{[%clk 0:00:07.9]} 57. h4 {[%clk 0:00:18.5]} 57... Kf4 {[%clk 0:00:08.2]} 58.
Rxe4+ {[%clk 0:00:16.4]} 58... fxe4 {[%clk 0:00:08.8]} 59. Rxe6 {[%clk
0:00:17.7]} 59... e3 {[%clk 0:00:10.5]} 60. Kh6 {[%clk 0:00:18.5]} 60... Kf3
{[%clk 0:00:11.3]} 61. Kh7 {[%clk 0:00:18.6]} 61... e2 {[%clk 0:00:12.9]} 62.
Kxg8 {[%clk 0:00:18]} 1-0